fUST/lending_fUST_20240615
["ID","MTS","AMOUNT","RATE_DAILY","PERIOD"]
[329530638,1718418643588,-504.50725247,0.00016864,2]
[329530639,1718418643610,-506.55931217,0.00016864,2]
[329530640,1718418643634,-509.49578952,0.00016864,2]
[329530641,1718418643670,-520.47271623,0.00016864,2]
[329530642,1718418643702,-506.24020322,0.00016864,2]
[329530643,1718418643713,-509.85255106,0.00016864,2]
[329530644,1718418643725,-500.0,0.00016864,2]
[329530645,1718418643758,-504.99485567,0.00016864,2]
[329530647,1718418643796,-152.522679,0.00016864,2]
[329530649,1718418643811,-500.0,0.00016864,2]
[329530651,1718418643849,-505.36411248,0.00016864,2]
[329530653,1718418643864,-500.0,0.00016864,2]
[329530656,1718418643908,-510.09659811,0.00016864,2]
[329530657,1718418643974,-504.47462996,0.00016864,2]
[329530659,1718418643988,-500.0,0.00016864,2]
[329530661,1718418644001,-500.0,0.00016864,2]
[329530664,1718418644014,-572.14,0.00016864,2]
[329530666,1718418644037,-572.14,0.00016864,2]
[329530668,1718418644090,-500.0,0.00016864,2]
[329530670,1718418644119,-1142.61,0.00016864,2]
[329530672,1718418644137,-507.7730009,0.00016864,2]
[329530673,1718418644151,-502.7529916,0.00016864,2]
[329530675,1718418644178,-947.68,0.00016864,2]
[329530677,1718418644191,-151.0,0.00016864,2]
[329530679,1718418644203,-166.095558,0.00016864,2]
[329530680,1718418644216,-500.0,0.00016864,2]
[329530682,1718418644227,-507.37465671,0.00016864,2]
[329530684,1718418644238,-500.0,0.00016864,2]
[329530685,1718418644260,-503.82671343,0.00016864,2]
[329530687,1718418644278,-505.15500292,0.00016864,2]
[329530689,1718418644297,-521.3400501,0.00016864,2]
[329530692,1718418644314,-907.51,0.00016864,2]
[329530694,1718418644330,-506.87527854,0.00016864,2]
[329530697,1718418644345,-2165.38,0.00016864,2]
[329530698,1718418644356,-3243.03,0.00016864,2]
[329530700,1718418644367,-503.31571778,0.00016864,2]
[329530702,1718418644389,-503.53744063,0.00016864,2]
[329530704,1718418644411,-500.0,0.00016864,2]
[329530705,1718418644426,-509.59511109,0.00016864,2]
[329530706,1718418644437,-507.20042498,0.00016864,2]
[329530708,1718418644450,-507.65728666,0.00016864,2]
[329530710,1718418644463,-502.62201678,0.00016864,2]
[329530713,1718418644480,-508.29756868,0.00016864,2]
[329530716,1718418644528,-522.53708622,0.00016864,2]
[329530717,1718418644549,-509.45859504,0.00016864,2]
[329530719,1718418644563,-500.0,0.00016864,2]
[329530721,1718418644575,-503.67171648,0.00016864,2]
[329530723,1718418644589,-5748.7,0.00016864,2]
[329530725,1718418644602,-503.56453826,0.00016864,2]
[329530727,1718418644619,-509.65515378,0.00016864,2]
[329530730,1718418644636,-500.0,0.00016864,2]
[329530733,1718418644652,-502.94991596,0.00016864,2]
[329530736,1718418644668,-500.0,0.00016864,2]
[329530738,1718418644697,-500.0,0.00016864,2]
[329530741,1718418644727,-502.16518329,0.00016864,2]
[329530742,1718418644741,-500.0,0.00016864,2]
[329530745,1718418644771,-28409.8710954,0.00016865,15]
[329530747,1718418644788,-262.74449031,0.00016865,2]
[329530750,1718418644807,-1662.13557081,0.00016865,2]
[329530752,1718418644832,-282.85577382,0.00016865,2]
[329530753,1718418644845,-159.89609808,0.00016865,2]
[329530755,1718418644878,-980.12842258,0.00016865,2]
[329530756,1718418644893,-511.2270451,0.00016865,2]
[329530758,1718418644914,-502.228282,0.00016865,2]
[329530760,1718418644937,-500.0,0.00016865,2]
[329530762,1718418644965,-500.0,0.00016865,2]
[329530764,1718418644976,-501.90113272,0.00016865,2]
[329530766,1718418644990,-511.01660959,0.00016865,2]
[329530768,1718418645008,-500.0,0.00016865,2]
[329530771,1718418645031,-500.0,0.00016865,2]
[329530773,1718418645055,-500.0,0.00016865,2]
[329530775,1718418645068,-504.74811214,0.00016865,2]
[329530777,1718418645104,-641.83132126,0.00016865,2]
[329530779,1718418645117,-506.71948781,0.00016865,2]
[329530781,1718418645133,-500.0,0.00016865,2]
[329530783,1718418645157,-500.0,0.00016865,2]
[329530785,1718418645170,-500.0,0.00016865,2]
[329530787,1718418645182,-517.98229606,0.00016865,2]
[329530789,1718418645193,-502.3218427,0.00016865,2]
[329530791,1718418645224,-502.43105941,0.00016865,2]
[329530793,1718418645239,-182.70969561,0.00016865,2]
[329530795,1718418645251,-503.00370791,0.00016865,2]
[329530797,1718418645268,-500.0,0.00016865,2]
[329530799,1718418645301,-511.65880275,0.00016865,2]
[329530800,1718418645312,-635.07363943,0.00016865,2]
[329530802,1718418645331,-500.0,0.00016865,2]
[329530804,1718418645349,-506.21818652,0.00016865,2]
[329530806,1718418645360,-500.0,0.00016865,2]
[329530808,1718418645385,-500.0,0.00016865,2]
[329530809,1718418645407,-505.90540945,0.00016865,2]
[329530812,1718418645434,-503.47186645,0.00016865,2]
[329530814,1718418645450,-500.0,0.00016865,2]
[329530816,1718418645478,-505.58695576,0.00016865,2]
[329530817,1718418645490,-618.08814096,0.00016865,2]
[329530818,1718418645502,-501.67170163,0.00016865,2]
[329530819,1718418645514,-501.42544748,0.00016865,2]
[329530820,1718418645529,-502.89807064,0.00016865,2]
[329530821,1718418645544,-500.0,0.00016865,2]
[329530822,1718418645557,-503.03817396,0.00016865,2]
[329530823,1718418645572,-503.41087203,0.00016865,2]
[329530824,1718418645584,-500.0,0.00016865,2]
[329530825,1718418645600,-502.80895802,0.00016865,2]
[329530826,1718418645614,-492.12187137,0.00016865,2]
[329530827,1718418645629,-501.38748301,0.00016865,2]
[329530828,1718418645642,-501.88633182,0.00016865,2]
[329530829,1718418645656,-500.83784937,0.00016865,2]
[329530830,1718418645684,-500.79614542,0.00016865,2]
[329530831,1718418645695,-505.17754026,0.00016865,2]
[329530832,1718418645721,-500.42224858,0.00016865,2]
[329530839,1718418645856,-505.03656074,0.00016865,2]
[329530841,1718418645872,-504.50540076,0.00016865,2]
[329530843,1718418645886,-270.884995,0.00016865,2]
[329530846,1718418645920,-500.0,0.00016865,2]
[329530848,1718418645934,-500.0,0.00016865,2]
[329530850,1718418645946,-503.12074294,0.00016865,2]
[329530852,1718418645964,-502.76327637,0.00016865,2]
[329530855,1718418645978,-508.38952463,0.00016865,2]
[329530857,1718418646005,-504.9696627,0.00016865,2]
[329530859,1718418646027,-503.68884305,0.00016865,2]
[329530860,1718418646038,-506.68219925,0.00016865,2]
[329530862,1718418646052,-505.01968995,0.00016865,2]
[329530864,1718418646069,-450.19193807,0.00016865,2]
[329530866,1718418646080,-511.1925468,0.00016865,2]
[329530867,1718418646097,-502.4131477,0.00016865,2]
[329530870,1718418646123,-504.66670351,0.00016865,2]
[329530872,1718418646134,-500.77084395,0.00016865,2]
[329530873,1718418646176,-516.30093783,0.00016865,2]
[329530875,1718418646201,-506.42306889,0.00016865,2]
[329530877,1718418646217,-502.00677347,0.00016865,2]
[329530879,1718418646228,-503.41766004,0.00016865,2]
[329530881,1718418646255,-509.65192443,0.00016865,2]
[329530882,1718418646274,-598.92768649,0.00016865,2]
[329530884,1718418646289,-501.41592113,0.00016865,2]
[329530886,1718418646305,-500.0,0.00016865,2]
[329530888,1718418646332,-506.07941815,0.00016865,2]
[329530891,1718418646353,-500.0,0.00016865,2]
[329530893,1718418646375,-504.23065568,0.00016865,2]
[329530895,1718418646386,-501.96423778,0.00016865,2]
[329530897,1718418646411,-504.38813681,0.00016865,2]
[329530899,1718418646462,-503.28059119,0.00016865,2]
[329530901,1718418646486,-503.61661275,0.00016865,2]
[329530904,1718418646529,-507.07542237,0.00016865,2]
[329530906,1718418646542,-506.8080653,0.00016865,2]
[329530908,1718418646554,-503.24837546,0.00016865,2]
[329530910,1718418646565,-500.0,0.00016865,2]
[329530912,1718418646577,-533.43848037,0.00016865,2]
[329530914,1718418646605,-507.00805062,0.00016865,2]
[329530916,1718418646639,-502.31874305,0.00016865,2]
[329530918,1718418646665,-502.54691224,0.00016865,2]
[329530921,1718418646696,-505.91823549,0.00016865,2]
[329530922,1718418646710,-502.23720264,0.00016865,2]
[329530925,1718418646723,-500.0,0.00016865,2]
[329530927,1718418646741,-500.91456937,0.00016865,2]
[329530929,1718418646758,-500.0,0.00016865,2]
[329530931,1718418646776,-500.0,0.00016865,2]
[329530932,1718418646788,-503.06479305,0.00016865,2]
[329530935,1718418646809,-500.38648866,0.00016865,2]
[329530936,1718418646821,-613.02877001,0.00016865,2]
[329530939,1718418646834,-501.66809948,0.00016865,2]
[329530940,1718418646849,-500.0,0.00016865,2]
[329530942,1718418646863,-500.0,0.00016865,2]
[329530944,1718418646879,-514.85144153,0.00016865,2]
[329530946,1718418646918,-161.78428774,0.00016865,2]
[329530947,1718418646934,-500.0,0.00016865,2]
[329530949,1718418646960,-505.58975544,0.00016865,2]
[329530951,1718418646973,-500.0,0.00016865,2]
[329530952,1718418646996,-530.71902685,0.00016865,2]
[329530954,1718418647008,-504.36705941,0.00016865,2]
[329530956,1718418647020,-500.0,0.00016865,2]
[329530958,1718418647031,-500.0,0.00016865,2]
[329530959,1718418647045,-500.0,0.00016865,2]
[329530961,1718418647071,-503.11915985,0.00016865,2]
[329530963,1718418647086,-509.30754118,0.00016865,2]
[329530965,1718418647097,-503.65117148,0.00016865,2]
[329530967,1718418647111,-504.2856913,0.00016865,2]
[329530969,1718418647127,-500.0,0.00016865,2]
[329530972,1718418647163,-505.72138112,0.00016865,2]
[329530973,1718418647175,-500.0,0.00016865,2]
[329530975,1718418647189,-503.11714692,0.00016865,2]
[329530977,1718418647204,-502.77979679,0.00016865,2]
[329530979,1718418647220,-540.52314779,0.00016865,2]
[329530982,1718418647244,-501.08199263,0.00016865,2]
[329530983,1718418647263,-500.0,0.00016865,2]
[329530986,1718418647284,-500.0,0.00016865,2]
[329530988,1718418647310,-504.09540352,0.00016865,2]
[329530990,1718418647338,-502.0975501,0.00016865,2]
[329530992,1718418647362,-502.09448871,0.00016865,2]
[329530994,1718418647373,-504.37713701,0.00016865,2]
[329530995,1718418647385,-504.23591169,0.00016865,2]
[329530997,1718418647398,-500.0,0.00016865,2]
[329530998,1718418647412,-500.0,0.00016865,2]
[329531000,1718418647429,-500.0,0.00016865,2]
[329531003,1718418647456,-587.51309542,0.00016865,2]
[329531006,1718418647476,-507.04173631,0.00016865,2]
[329531008,1718418647499,-252.02044265,0.00016865,2]
[329531010,1718418647516,-502.43502741,0.00016865,2]
[329531011,1718418647529,-506.19627706,0.00016865,2]
[329531013,1718418647541,-500.0,0.00016865,2]
[329531015,1718418647563,-500.0,0.00016865,2]
[329531016,1718418647579,-507.94224143,0.00016865,2]
[329531018,1718418647604,-500.0,0.00016865,2]
[329531020,1718418647639,-500.0,0.00016865,2]
[329531023,1718418647665,-507.72918668,0.00016865,2]
[329531025,1718418647687,-500.0,0.00016865,2]
[329531027,1718418647701,-500.0,0.00016865,2]
[329531029,1718418647714,-500.0,0.00016865,2]
[329531030,1718418647729,-505.43432992,0.00016865,2]
[329531033,1718418647744,-500.0,0.00016865,2]
[329531036,1718418647759,-500.0,0.00016865,2]
[329531039,1718418647775,-572.14,0.00016865,2]
[329531041,1718418647787,-500.53215675,0.00016865,2]
[329531043,1718418647799,-501.16237796,0.00016865,2]
[329531046,1718418647835,-504.71214835,0.00016865,2]
[329531047,1718418647849,-504.87006426,0.00016865,2]
[329531049,1718418647863,-647.74839552,0.00016865,2]
[329531051,1718418647885,-500.0,0.00016865,2]
[329531053,1718418647899,-500.0,0.00016865,2]
[329531055,1718418647918,-500.0,0.00016865,2]
[329531057,1718418647930,-500.0,0.00016865,2]
[329531058,1718418647944,-503.58518953,0.00016865,2]
[329531060,1718418647957,-500.0,0.00016865,2]
[329531062,1718418647968,-546.89895111,0.00016865,2]
[329531063,1718418647987,-500.87519221,0.00016865,2]
[329531065,1718418647999,-501.65125986,0.00016865,2]
[329531067,1718418648025,-503.77482999,0.00016865,2]
[329531069,1718418648038,-500.0,0.00016865,2]
[329531071,1718418648060,-503.47839031,0.00016865,2]
[329531075,1718418648084,-500.0,0.00016865,2]
[329531078,1718418648099,-500.0,0.00016865,2]
[329531080,1718418648112,-506.56000383,0.00016865,2]
[329531082,1718418648132,-500.37310183,0.00016865,2]
[329531085,1718418648153,-513.14797661,0.00016865,2]
[329531087,1718418648182,-501.12946661,0.00016865,2]
[329531089,1718418648199,-506.95942496,0.00016865,2]
[329531091,1718418648213,-500.0,0.00016865,2]
[329531093,1718418648245,-494.81537849,0.00016865,2]
[329531095,1718418648271,-502.92893293,0.00016865,2]
[329531097,1718418648301,-500.0,0.00016865,2]
[329531099,1718418648318,-502.292938,0.00016865,2]
[329531102,1718418648340,-510.85617571,0.00016865,2]
[329531104,1718418648374,-525.11271605,0.00016865,2]
[329531107,1718418648402,-501.91064493,0.00016865,2]
[329531109,1718418648429,-500.0,0.00016865,2]
[329531111,1718418648445,-502.1520775,0.00016865,2]
[329531113,1718418648467,-508.21236045,0.00016865,2]
[329531120,1718418648511,-500.0,0.00016865,2]
[329531124,1718418648529,-506.02083205,0.00016865,2]
[329531128,1718418648544,-501.65406666,0.00016865,2]
[329531130,1718418648565,-158.88570427,0.00016865,2]
[329531134,1718418648586,-505.37513008,0.00016865,2]
[329531137,1718418648633,-160.80098166,0.00016865,2]
[329531140,1718418648651,-505.4890336,0.00016865,2]
[329531143,1718418648666,-376.26029153,0.00016865,2]
[329531146,1718418648688,-500.0,0.00016865,2]
[329531147,1718418648702,-502.88865455,0.00016865,2]
[329531149,1718418648716,-506.7370762,0.00016865,2]
[329531152,1718418648731,-502.44925111,0.00016865,2]
[329531155,1718418648757,-500.0,0.00016865,2]
[329531157,1718418648771,-500.83116413,0.00016865,2]
[329531159,1718418648786,-511.89912632,0.00016865,2]
[329531161,1718418648801,-500.98771587,0.00016865,2]
[329531163,1718418648815,-502.63998431,0.00016865,2]
[329531165,1718418648829,-522.30628135,0.00016865,2]
[329531167,1718418648864,-500.0,0.00016866,2]
[329531169,1718418648905,-502.78380071,0.00016866,2]
[329531171,1718418648933,-502.03540818,0.00016866,2]
[329531173,1718418648992,-500.0,0.00016866,2]
[329531175,1718418649008,-500.0,0.00016866,2]
[329531177,1718418649038,-500.0,0.00016866,2]
[329531179,1718418649059,-501.93467064,0.00016866,2]
[329531181,1718418649076,-500.0,0.00016866,2]
[329531184,1718418649090,-600.61267341,0.00016866,2]
[329531186,1718418649111,-500.0,0.00016866,2]
[329531188,1718418649126,-500.0,0.00016866,2]
[329531190,1718418649140,-500.0,0.00016866,2]
[329531192,1718418649152,-502.26426681,0.00016866,2]
[329531194,1718418649231,-500.0,0.00016866,2]
[329531197,1718418649257,-500.0,0.00016866,2]
[329531199,1718418649272,-140.95716294,0.00016866,2]
[329531234,1718418649804,-500.0,0.00016846,2]
[329531237,1718418649830,-500.0,0.00016846,2]
[329531239,1718418649842,-189.73765153,0.00016866,2]
[329531254,1718418650131,-177.51795528,0.00016866,2]
[329531256,1718418650143,-501.29044647,0.00016866,2]
[329531258,1718418650155,-344.86493986,0.00016866,2]
[329531260,1718418650183,-158.9971611,0.00016866,2]
[329531262,1718418650194,-355.55349081,0.00016866,2]
[329531264,1718418650209,-144.44650919,0.00016866,2]
[329531267,1718418650238,-504.54975294,0.00016866,2]
[329531268,1718418650263,-500.0,0.00016866,2]
[329531278,1718418650427,-80.34112918,0.00016866,2]
[329531280,1718418650459,-425.85436722,0.00016866,2]
[329531282,1718418650470,-502.97249613,0.00016866,2]
[329531284,1718418650516,-504.22305162,0.00016866,2]
[329531286,1718418650528,-336.86377753,0.00016866,2]
[329531288,1718418650556,-500.0,0.00016866,2]
[329531290,1718418650571,-500.0,0.00016866,2]
[329531292,1718418650585,-500.0,0.00016866,2]
[329531294,1718418650598,-500.0,0.00016866,2]
[329531297,1718418650614,-500.0,0.00016866,2]
[329531299,1718418650657,-500.0,0.00016866,2]
[329531300,1718418650669,-500.0,0.00016866,2]
[329531302,1718418650690,-572.14,0.00016866,2]
[329531304,1718418650709,-572.14,0.00016866,2]
[329531306,1718418650721,-260.71999646,0.00016866,2]
[329532609,1718419834484,-170.4140666,0.00015479,2]
[329532610,1718419834499,-414.53890167,0.00016126,2]
[329532611,1718419834661,-208.96020047,0.00016126,2]
[329532612,1718419834676,-166.666666,0.00016164,2]
[329532613,1718419834693,-300.0,0.00016502,2]
[329532614,1718419834705,-99.02313353,0.00016503,2]
[329532615,1718419834823,-3023.45680044,0.00016503,2]
[329532616,1718419834842,-283.36474489,0.00016503,2]
[329532647,1718419840262,-3491.06371651,0.00016503,2]
[329532648,1718419840283,-4598.2762932,0.00016503,2]
[329532649,1718419840537,-7242.200015,0.00016503,2]
[329532725,1718419847206,-16741.19340177,0.00016503,2]
[329532727,1718419847237,-500.0,0.00016504,2]
[329532730,1718419847260,-472.03475224,0.00016504,2]
[329532732,1718419847292,-500.0,0.00016504,2]
[329532734,1718419847304,-500.0,0.00016504,2]
[329532736,1718419847319,-502.8520521,0.00016504,2]
[329532738,1718419847335,-500.0,0.00016504,2]
[329532740,1718419847347,-500.0,0.00016504,2]
[329532742,1718419847374,-500.0,0.00016504,2]
[329532744,1718419847388,-500.0,0.00016504,2]
[329532745,1718419847400,-1248.71,0.00016504,2]
[329532748,1718419847411,-500.0,0.00016504,2]
[329532753,1718419847438,-500.0,0.00016504,2]
[329532758,1718419847471,-500.0,0.00016504,2]
[329532761,1718419847486,-500.0,0.00016504,2]
[329532764,1718419847504,-500.0,0.00016504,2]
[329532769,1718419847534,-500.0,0.00016504,2]
[329532773,1718419847555,-500.0,0.00016504,2]
[329532776,1718419847569,-500.0,0.00016504,2]
[329532779,1718419847584,-500.0,0.00016504,2]
[329532782,1718419847604,-500.0,0.00016504,2]
[329532785,1718419847622,-527.17049474,0.00016504,2]
[329532788,1718419847653,-598.02034989,0.00016504,2]
[329532791,1718419847666,-479.03199738,0.00016504,2]
[329532795,1718419847680,-5271.4,0.00016504,2]
[329532798,1718419847694,-500.0,0.00016504,2]
[329532803,1718419847719,-1456.95,0.00016504,2]
[329532804,1718419847736,-4847.22,0.00016504,2]
[329532806,1718419847747,-500.0,0.00016504,2]
[329532809,1718419847770,-1698.58,0.00016504,2]
[329532811,1718419847786,-744.6,0.00016504,2]
[329532813,1718419847804,-500.0,0.00016504,2]
[329532815,1718419847816,-500.0,0.00016504,2]
[329532817,1718419847827,-500.0,0.00016504,2]
[329532819,1718419847845,-9971.5571019,0.00016505,2]
[329532821,1718419847866,-5000.0,0.00016505,2]
[329532823,1718419847878,-500.0,0.00016778,2]
[329532824,1718419847896,-500.0,0.00016778,2]
[329532825,1718419847911,-500.0,0.00016778,2]
[329532826,1718419847936,-500.0,0.00016778,2]
[329532827,1718419847953,-527.75396569,0.00016778,2]
[329532828,1718419847964,-1248.71,0.00016778,2]
[329532829,1718419847974,-500.0,0.00016778,2]
[329532830,1718419847989,-500.0,0.00016778,2]
[329532831,1718419848001,-5271.4,0.00016778,2]
[329532832,1718419848012,-500.0,0.00016778,2]
[329532833,1718419848024,-1456.95,0.00016778,2]
[329532834,1718419848039,-4847.22,0.00016778,2]
[329532835,1718419848053,-500.0,0.00016778,2]
[329532836,1718419848064,-1698.58,0.00016778,2]
[329532837,1718419848079,-744.6,0.00016778,2]
[329532838,1718419848092,-500.0,0.00016778,2]
[329532839,1718419848117,-500.0,0.00016778,2]
[329532840,1718419848143,-500.0,0.00016778,2]
[329532841,1718419848160,-205.438059,0.000168,2]
[329532844,1718419848172,-407.9444552,0.000168,2]
[329532845,1718419848188,-208.2975148,0.000168,2]
[329532846,1718419848202,-205.438059,0.000168,2]
[329532847,1718419848213,-205.438059,0.000168,2]
[329532848,1718419848225,-395.36940499,0.00016844,2]
[329532849,1718419848238,-500.0,0.00016844,2]
[329532850,1718419848250,-519.13,0.00016844,2]
[329532851,1718419848261,-500.0,0.00016844,2]
[329532852,1718419848290,-714.14,0.00016844,2]
[329532853,1718419848303,-500.0,0.00016844,2]
[329532854,1718419848326,-504.87192577,0.00016844,2]
[329532855,1718419848337,-500.0,0.00016844,2]
[329532856,1718419848356,-589.03,0.00016844,2]
[329532857,1718419848371,-549.70490181,0.00016844,2]
[329532858,1718419848382,-500.0,0.00016844,2]
[329532859,1718419848394,-1377.16,0.00016844,2]
[329532860,1718419848408,-500.0,0.00016844,2]
[329532861,1718419848421,-1553.44,0.00016844,2]
[329532862,1718419848433,-1198.34,0.00016844,2]
[329532863,1718419848445,-500.0,0.00016844,2]
[329532864,1718419848466,-500.0,0.00016844,2]
[329532865,1718419848478,-930.04,0.00016844,2]
[329532866,1718419848500,-2796.81,0.00016844,2]
[329532867,1718419848520,-500.0,0.00016844,2]
[329532868,1718419848536,-500.0,0.00016844,2]
[329532869,1718419848563,-654.76,0.00016844,2]
[329532870,1718419848575,-500.0,0.00016844,2]
[329532871,1718419848589,-7379.14,0.00016844,2]
[329532872,1718419848616,-500.0,0.00016844,2]
[329532873,1718419848639,-3952.53,0.00016844,2]
[329532874,1718419848656,-648.36,0.00016844,2]
[329532875,1718419848671,-500.0,0.00016844,2]
[329532876,1718419848686,-183.048831,0.00016844,2]
[329532877,1718419848704,-502.32434748,0.00016844,2]
[329532878,1718419848718,-151.0,0.00016844,2]
[329532879,1718419848733,-184.325594,0.00016844,2]
[329532880,1718419848760,-500.0,0.00016844,2]
[329532881,1718419848771,-151.0,0.00016844,2]
[329532882,1718419848786,-151.0,0.00016844,2]
[329532883,1718419848802,-556.83,0.00016845,2]
[329532884,1718419848823,-151.0,0.00016845,2]
[329532885,1718419848834,-151.0,0.00016845,2]
[329532886,1718419848852,-500.0,0.00016845,2]
[329532887,1718419848864,-151.0,0.00016845,2]
[329532888,1718419848880,-500.0,0.00016845,2]
[329532889,1718419848896,-151.0,0.00016845,2]
[329532890,1718419848909,-151.0,0.00016845,2]
[329532891,1718419848920,-226.671128,0.00016845,2]
[329532892,1718419848932,-151.0,0.00016845,2]
[329532893,1718419848943,-151.0,0.00016845,2]
[329532894,1718419848958,-153.929489,0.00016845,2]
[329532895,1718419848971,-151.0,0.00016845,2]
[329532896,1718419848987,-151.0,0.00016845,2]
[329532897,1718419848997,-151.0,0.00016845,2]
[329532898,1718419849010,-554.28786932,0.00016846,2]
[329532899,1718419849029,-500.0,0.00016846,2]
[329532900,1718419849061,-505.30217317,0.00016846,2]
[329532901,1718419849075,-500.0,0.00016846,2]
[329532902,1718419849095,-209.24472364,0.00016846,2]
[329532903,1718419849107,-500.0,0.00016846,2]
[329532904,1718419849120,-509.13224675,0.00016846,2]
[329532905,1718419849145,-500.0,0.00016846,2]
[329532906,1718419849192,-500.0,0.00016846,2]
[329532907,1718419849209,-508.60580619,0.00016846,2]
[329532908,1718419849223,-500.0,0.00016846,2]
[329532909,1718419849238,-500.0,0.00016846,2]
[329532910,1718419849248,-500.0,0.00016846,2]
[329532911,1718419849264,-500.0,0.00016846,2]
[329532912,1718419849278,-500.0,0.00016846,2]
[329532913,1718419849295,-507.78889468,0.00016846,2]
[329532914,1718419849309,-500.0,0.00016846,2]
[329532915,1718419849322,-500.0,0.00016846,2]
[329532916,1718419849337,-500.0,0.00016846,2]
[329532917,1718419849350,-500.0,0.00016846,2]
[329532918,1718419849378,-500.0,0.00016846,2]
[329532919,1718419849396,-500.0,0.00016846,2]
[329532920,1718419849417,-500.55942402,0.00016846,2]
[329532921,1718419849432,-500.0,0.00016846,2]
[329532922,1718419849445,-156.556098,0.00016846,2]
[329532923,1718419849456,-500.0,0.00016846,2]
[329532924,1718419849472,-500.0,0.00016846,2]
[329532925,1718419849492,-505.4146408,0.00016846,2]
[329532926,1718419849506,-152.732731,0.00016846,2]
[329532927,1718419849519,-503.78141916,0.00016846,2]
[329532928,1718419849540,-509.12894903,0.00016846,2]
[329532929,1718419849559,-503.16376079,0.00016846,2]
[329532930,1718419849577,-503.99097344,0.00016846,2]
[329532931,1718419849592,-488.21437477,0.00016846,2]
[329532932,1718419849608,-502.97485821,0.00016846,2]
[329532933,1718419849629,-500.0,0.00016846,2]
[329532934,1718419849644,-500.0,0.00016846,2]
[329532935,1718419849660,-500.0,0.00016846,2]
[329532936,1718419849694,-500.0,0.00016846,2]
[329532937,1718419849718,-500.0,0.00016846,2]
[329532938,1718419849733,-298.42932084,0.00016846,2]
[329532939,1718419849751,-500.0,0.00016846,2]
[329532940,1718419849769,-500.0,0.00016846,2]
[329532941,1718419849798,-416.56043588,0.00016846,2]
[329532942,1718419849809,-152.84112,0.00016846,2]
[329532943,1718419849821,-500.0,0.00016846,2]
[329532944,1718419849853,-505.32294698,0.00016846,2]
[329532945,1718419849866,-500.0,0.00016846,2]
[329532946,1718419849877,-152.675532,0.00016846,2]
[329532947,1718419849890,-502.93811058,0.00016846,2]
[329532948,1718419849902,-501.83866596,0.00016846,2]
[329532949,1718419849913,-505.09984611,0.00016846,2]
[329532950,1718419849924,-500.0,0.00016846,2]
[329532951,1718419849935,-500.0,0.00016846,2]
[329532952,1718419849947,-502.73753227,0.00016846,2]
[329532953,1718419849958,-197.0,0.00016846,2]
[329532954,1718419849973,-503.06092751,0.00016846,2]
[329532955,1718419850002,-153.429395,0.00016846,2]
[329532956,1718419850017,-151.0,0.00016846,2]
[329532957,1718419850033,-500.0,0.00016846,2]
[329532958,1718419850053,-398.69108866,0.00016846,2]
[329532959,1718419850065,-151.0,0.00016846,2]
[329532960,1718419850078,-151.0,0.00016846,2]
[329532961,1718419850093,-151.0,0.00016846,2]
[329532962,1718419850110,-500.0,0.00016846,2]
[329532963,1718419850128,-151.0,0.00016846,2]
[329532964,1718419850141,-151.0,0.00016846,2]
[329532965,1718419850161,-151.0,0.00016846,2]
[329532966,1718419850175,-151.0,0.00016846,2]
[329532967,1718419850187,-151.0,0.00016846,2]
[329532968,1718419850202,-151.0,0.00016846,2]
[329532969,1718419850238,-151.0,0.00016846,2]
[329532970,1718419850250,-151.0,0.00016846,2]
[329532971,1718419850260,-185.850299,0.00016846,2]
[329532972,1718419850271,-151.0,0.00016846,2]